bitfinex/quotes_BTCUSD_20230114
["timestamp","ask_amount","ask_price","bid_price","bid_amount"]
[1673701854706,2.16906866,20912.0,20911.0,5.42748335]
[1673701855202,2.64763044,20912.0,20911.0,5.42748335]
[1673701855462,2.86143044,20912.0,20911.0,5.42748335]
[1673701857187,3.11700454,20912.0,20911.0,5.42748335]
[1673701859197,3.11700454,20912.0,20911.0,5.31347702]
[1673701859970,3.01700454,20912.0,20911.0,5.31347702]
[1673701860709,3.23037277,20912.0,20911.0,5.31347702]
[1673701861212,3.23037277,20912.0,20911.0,3.22775091]
[1673701861467,3.23037277,20912.0,20910.0,2.12028348]
[1673701861468,0.65606881,20911.0,20910.0,2.12028348]
[1673701861712,3.33331379,20911.0,20910.0,2.12028348]
[1673701861956,4.80909449,20911.0,20910.0,2.12028348]
[1673701862207,5.28959576,20911.0,20910.0,2.12028348]
[1673701862706,5.28959576,20911.0,20902.0,2.17783702]
[1673701862707,2.82648306,20908.0,20902.0,2.17783702]
[1673701862959,0.43344356,20903.0,20902.0,2.17783702]
[1673701863200,1.17729093,20903.0,20902.0,2.17783702]
[1673701863455,1.39024887,20903.0,20902.0,2.17777042]
[1673701863701,0.55692,20903.0,20902.0,2.17777042]
[1673701863944,0.07852,20903.0,20902.0,2.17777042]
[1673701864439,0.21352,20903.0,20902.0,2.17777042]
[1673701864686,0.79380021,20903.0,20902.0,2.17777042]
[1673701866468,1.00681815,20903.0,20902.0,2.17777042]
[1673701866716,0.79386021,20903.0,20902.0,2.17777042]
[1673701867968,1.53508111,20903.0,20902.0,2.17777042]
[1673701868216,3.31129593,20903.0,20902.0,2.17777042]
[1673701868458,3.02735909,20903.0,20902.0,2.17777042]
[1673701868710,3.02735909,20903.0,20902.0,1.84563242]
[1673701868711,3.60361194,20903.0,20902.0,1.84563242]
[1673701868974,3.40093684,20903.0,20902.0,0.39545642]
[1673701869233,4.83162634,20903.0,20902.0,0.39545642]
[1673701869494,5.44483428,20903.0,20902.0,0.39448468]
[1673701869764,5.39614097,20903.0,20902.0,0.39448468]
[1673701870037,5.39614097,20903.0,20900.0,0.00809236]
[1673701870038,0.1,20902.0,20900.0,0.00809236]
[1673701870274,0.33185028,20899.0,20898.0,0.00862095]
[1673701870570,1.32432044,20899.0,20896.0,0.00836373]
[1673701870812,0.95676071,20897.0,20896.0,0.00836373]
[1673701871059,11.20995801,20897.0,20896.0,0.00836373]
[1673701871303,11.53624124,20897.0,20896.0,0.00836373]
[1673701871555,12.51842779,20897.0,20896.0,0.00836373]
[1673701871837,13.00002487,20897.0,20896.0,0.00836373]
[1673701872062,0.17852,20896.0,20895.0,1.08e-05]
[1673701872303,0.05679169,20889.0,20883.0,0.25517266]
[1673701872551,0.02579,20887.0,20884.0,1.01043691]
[1673701873053,0.51022017,20888.0,20886.0,0.31205678]
[1673701873313,0.504541,20888.0,20886.0,0.31205678]
[1673701873556,0.504541,20888.0,20882.0,0.6]
[1673701873557,0.93617033,20885.0,20884.0,0.24996358]
[1673701873807,0.93617033,20885.0,20882.0,0.6]
[1673701874310,0.93617033,20885.0,20882.0,0.88193541]
[1673701874556,1.32932604,20885.0,20882.0,0.88193541]
[1673701875060,1.32932604,20885.0,20883.0,0.25382292]
[1673701875061,0.264,20885.0,20883.0,0.25382292]
[1673701875305,0.264,20885.0,20884.0,0.29016975]
[1673701875800,0.26406,20885.0,20884.0,0.29016975]
[1673701876304,0.25006,20885.0,20884.0,0.29016975]
[1673701876546,0.26506,20885.0,20884.0,0.29016975]
[1673701877035,0.26506,20885.0,20884.0,0.00026829]
[1673701877280,0.26506,20885.0,20883.0,0.25216865]
[1673701877537,0.26506,20885.0,20882.0,1.557735]
[1673701877789,0.26506,20885.0,20883.0,0.29800544]
[1673701878283,0.26506,20885.0,20883.0,0.29787224]
[1673701878284,0.25006,20885.0,20883.0,0.29787224]
[1673701878522,0.29551512,20885.0,20882.0,0.6]
[1673701878776,0.29545512,20885.0,20882.0,0.6]
[1673701879026,0.25,20885.0,20883.0,0.25523133]
[1673701879274,0.264,20885.0,20883.0,0.25523133]
[1673701880058,0.264,20885.0,20882.0,1.32917989]
[1673701880299,0.25,20885.0,20883.0,0.778857]
[1673701880550,0.265,20885.0,20883.0,1.09331136]
[1673701880800,0.25,20885.0,20884.0,0.320804]
[1673701881051,0.254,20885.0,20884.0,0.799639]
[1673701881799,0.254,20885.0,20884.0,1.03471528]
[1673701882045,0.25,20885.0,20884.0,1.03471528]
[1673701882544,0.25,20885.0,20884.0,1.44941528]
[1673701882790,0.25,20885.0,20884.0,1.214339]
[1673701883040,0.25,20885.0,20884.0,1.429039]
[1673701883286,0.04975118,20887.0,20885.0,0.1]
[1673701883531,0.04975118,20887.0,20886.0,2.25132]
[1673701883781,0.00026,20887.0,20886.0,2.89442]
[1673701884292,0.00026,20887.0,20886.0,2.52724508]
[1673701884539,6e-05,20887.0,20886.0,1.30015262]
[1673701884806,0.07858,20887.0,20886.0,1.46510605]
[1673701885057,0.78529992,20885.0,20884.0,0.478831]
[1673701886055,0.78529992,20885.0,20883.0,0.87410382]
[1673701886309,0.78529992,20885.0,20883.0,0.28045282]
[1673701886811,0.80629992,20885.0,20883.0,0.27882492]
[1673701887071,0.80629992,20885.0,20882.0,1.671635]
[1673701887072,0.78529992,20885.0,20882.0,1.671635]
[1673701887333,0.79029992,20885.0,20884.0,0.1147]
[1673701887841,1.0083419,20885.0,20884.0,0.1147]
[1673701888096,1.0033419,20885.0,20884.0,0.1147]
[1673701889095,1.0133419,20885.0,20883.0,0.72585025]
[1673701889348,1.0033419,20885.0,20883.0,0.24699525]
[1673701889588,1.0253419,20885.0,20884.0,0.003]
[1673701890095,0.80729992,20885.0,20884.0,0.003]
[1673701890341,0.86603591,20885.0,20881.0,0.478901]
[1673701890610,0.1858484,20884.0,20883.0,0.052]
[1673701890874,0.1858484,20884.0,20881.0,0.76586638]
[1673701891365,0.1858484,20884.0,20882.0,0.29831334]
[1673701891610,0.1858484,20884.0,20881.0,0.28867993]
[1673701891862,0.1858484,20884.0,20881.0,0.02306454]
[1673701892111,0.1858484,20884.0,20882.0,0.28303719]
[1673701892615,0.1908484,20884.0,20883.0,0.052]
[1673701892866,0.1858484,20884.0,20882.0,0.28303719]
[1673701893123,0.1958484,20884.0,20882.0,0.28303719]
[1673701893363,0.1858484,20884.0,20882.0,0.28303719]
[1673701893610,0.1958484,20884.0,20882.0,0.36303719]
[1673701893853,0.1958484,20884.0,20882.0,0.84191519]
[1673701894101,0.1958484,20884.0,20882.0,0.08]
[1673701894845,0.29563402,20883.0,20882.0,0.08]
[1673701895103,0.1131066,20884.0,20882.0,0.08]
[1673701895343,0.15999999,20881.0,20878.0,0.01123609]
[1673701895599,0.63890799,20881.0,20878.0,0.01123609]
[1673701895874,0.17852,20879.0,20878.0,0.01123609]
[1673701896125,0.07852,20879.0,20878.0,0.01123609]
[1673701896371,0.29343,20879.0,20878.0,0.01123609]
[1673701897420,0.42943,20879.0,20878.0,0.01123609]
[1673701897675,0.21452,20879.0,20878.0,0.01123609]
[1673701898172,0.136,20879.0,20878.0,0.01123609]
[1673701898420,0.136,20879.0,20878.0,0.49020909]
[1673701898922,0.13606,20879.0,20878.0,0.49020909]
[1673701899690,0.13606,20879.0,20878.0,0.01123609]
[1673701900192,0.13606,20879.0,20878.0,0.72755948]
[1673701900712,0.13606,20879.0,20878.0,0.01123609]
[1673701900964,0.13606,20879.0,20878.0,0.7304301]
[1673701901701,0.13606,20879.0,20878.0,0.49020909]
[1673701902194,0.13606,20879.0,20878.0,0.7381173]
[1673701902449,0.13606,20879.0,20878.0,1.0589913]
[1673701902933,0.13606,20879.0,20878.0,1.3589913]
[1673701903425,0.13606,20879.0,20878.0,0.81108309]
[1673701903668,0.13606,20879.0,20878.0,0.49020909]
[1673701903909,0.136,20879.0,20878.0,0.49020909]
[1673701904120,0.136,20879.0,20878.0,0.01123609]
[1673701904396,0.46918256,20879.0,20878.0,0.01123609]
[1673701905416,0.46918256,20879.0,20877.0,0.48600131]
[1673701905417,0.46918256,20879.0,20877.0,0.46352914]
[1673701905674,0.31125335,20878.0,20877.0,0.46352914]
[1673701905924,1.11967931,20876.0,20875.0,0.01202674]
[1673701906173,1.11967931,20876.0,20875.0,0.00863215]
[1673701906421,1.4773217,20876.0,20875.0,0.00863215]
[1673701906912,1.33458931,20876.0,20875.0,0.00863215]
[1673701907437,0.1,20875.0,20871.0,0.01163306]
[1673701907684,0.35703022,20874.0,20871.0,0.01163306]
[1673701907949,0.21491,20873.0,20871.0,0.01163306]
[1673701908210,0.35703022,20875.0,20871.0,0.74762106]
[1673701908452,0.21409859,20875.0,20872.0,0.1147]
[1673701908716,0.2726932,20874.0,20873.0,0.1147]
[1673701908969,0.3386932,20874.0,20873.0,0.958174]
[1673701909496,0.2726932,20874.0,20873.0,0.958174]
[1673701909996,0.4076932,20874.0,20873.0,0.958174]
[1673701911544,0.4076932,20874.0,20872.0,0.479107]
[1673701911791,0.4076932,20874.0,20871.0,0.479129]
[1673701911792,0.62948919,20874.0,20871.0,0.479129]
[1673701912284,0.2726932,20874.0,20871.0,0.479129]
[1673701912545,0.4066932,20874.0,20871.0,0.479129]
[1673701912803,0.29212699,20873.0,20871.0,0.479129]
[1673701913293,0.14293163,20874.0,20870.0,0.479135]
[1673701913540,0.14293163,20874.0,20869.0,0.479168]
[1673701913541,0.3102253,20873.0,20869.0,0.479168]
[1673701913780,0.35703022,20874.0,20869.0,0.479168]
[1673701914027,0.3084327,20873.0,20869.0,0.98505868]
[1673701914291,1.1976008,20874.0,20867.0,0.479402]
[1673701914533,0.14293163,20871.0,20867.0,0.00019]
[1673701914784,0.14293163,20870.0,20867.0,0.00019]
[1673701915027,0.21491,20869.0,20867.0,0.00019]
[1673701915284,0.14293163,20871.0,20866.0,0.74683308]
[1673701915546,0.1,20870.0,20865.0,0.479267]
[1673701915795,0.21491,20869.0,20865.0,0.79863325]
[1673701916036,0.1,20870.0,20865.0,0.79863325]
[1673701916037,0.31381416,20870.0,20865.0,0.79863325]
[1673701916290,0.013,20869.0,20865.0,0.79863325]
[1673701916546,0.48172277,20870.0,20865.0,0.79863325]
[1673701916797,0.49692277,20870.0,20865.0,0.9893592]
[1673701917041,0.21491,20869.0,20865.0,0.9893592]
[1673701917295,0.51228628,20870.0,20865.0,0.79863325]
[1673701917541,0.31826809,20870.0,20867.0,0.32929382]
[1673701917791,0.31826809,20870.0,20867.0,1.28771882]
[1673701918037,0.31826809,20870.0,20868.0,0.24223675]
[1673701918284,0.30326809,20870.0,20868.0,0.24223675]
[1673701918534,0.28020502,20869.0,20867.0,0.479203]
[1673701918778,0.26520502,20869.0,20867.0,0.479203]
[1673701919041,0.0132,20870.0,20867.0,0.30542595]
[1673701919286,6e-05,20870.0,20868.0,1.61252326]
[1673701919530,0.00606,20870.0,20869.0,0.321042]
[1673701919778,0.00606,20870.0,20869.0,1.100221]
[1673701919779,6e-05,20870.0,20869.0,1.100221]
[1673701920276,6e-05,20870.0,20869.0,1.214921]
[1673701920539,0.07858,20870.0,20869.0,0.800221]
[1673701921044,6e-05,20870.0,20869.0,0.800221]
[1673701921300,6e-05,20870.0,20869.0,0.914921]
[1673701921542,6e-05,20870.0,20869.0,1.129621]
[1673701921800,0.00906,20870.0,20869.0,1.429621]
[1673701922054,6e-05,20870.0,20869.0,1.429621]
[1673701922303,0.01006,20870.0,20869.0,1.409621]
[1673701922554,0.0495011,20874.0,20869.0,1.409621]
[1673701922555,0.04178713,20874.0,20870.0,0.1]
[1673701922804,1.11967931,20876.0,20873.0,0.229]
[1673701923051,1.11967931,20876.0,20871.0,3.12601564]
[1673701923052,1.11967931,20876.0,20875.0,0.2294]
[1673701923298,1.11967931,20876.0,20875.0,0.72012595]
[1673701923549,1.11967931,20876.0,20875.0,1.12616276]
[1673701923805,1.11967931,20876.0,20875.0,0.735629]
[1673701924548,1.11967931,20876.0,20875.0,0.835629]
[1673701924789,1.11967931,20876.0,20875.0,0.974629]
[1673701925032,1.11967931,20876.0,20875.0,1.04518673]
[1673701925529,0.55439633,20876.0,20875.0,1.15167]
[1673701926766,0.55439633,20876.0,20875.0,1.45167]
[1673701927012,0.39157091,20881.0,20876.0,0.1]
[1673701927270,0.39157091,20881.0,20878.0,0.2147]
[1673701927557,0.39157091,20881.0,20879.0,1.73685]
[1673701927803,0.39157091,20881.0,20880.0,0.32084]
[1673701928057,0.39157091,20881.0,20880.0,1.099767]
[1673701928534,0.39957091,20881.0,20880.0,1.199767]
[1673701928777,0.39157091,20881.0,20880.0,1.46158545]
[1673701929026,0.39957091,20881.0,20880.0,1.65804229]
[1673701929266,0.39957091,20881.0,20880.0,1.323467]
[1673701929483,0.39957091,20881.0,20880.0,1.61091691]
[1673701929758,0.39957091,20881.0,20880.0,1.437467]
[1673701930510,0.00748717,20883.0,20881.0,0.1]
[1673701930764,0.00748717,20883.0,20882.0,1.986846]
[1673701931024,0.78529992,20885.0,20882.0,1.986846]
[1673701931025,0.78529992,20885.0,20883.0,0.1]
[1673701931271,0.78529992,20885.0,20884.0,1.665905]
[1673701931568,0.78529992,20885.0,20884.0,2.386671]
[1673701931569,0.78535992,20885.0,20884.0,2.386671]
[1673701932301,0.78535992,20885.0,20884.0,2.60502997]
[1673701932548,0.78535992,20885.0,20884.0,2.195671]
[1673701932814,0.82266039,20885.0,20884.0,1.288436]
[1673701933104,0.78535992,20885.0,20884.0,1.288436]
[1673701933634,0.78535992,20885.0,20884.0,0.488835]
[1673701933890,0.78535992,20885.0,20882.0,0.478868]
[1673701933891,0.74416052,20883.0,20882.0,0.478868]
[1673701934157,0.99637099,20883.0,20881.0,0.478888]
[1673701934410,0.99637099,20883.0,20880.0,0.47989668]
[1673701934411,0.78146099,20883.0,20880.0,0.47989668]
[1673701934714,0.25221047,20882.0,20880.0,0.00097268]
[1673701934966,0.06309047,20882.0,20880.0,0.00097268]
[1673701935214,0.06309047,20882.0,20873.0,0.479076]
[1673701935215,0.21491,20881.0,20873.0,0.479076]
[1673701935465,0.21491,20881.0,20876.0,0.00097849]
[1673701935466,0.62218359,20880.0,20876.0,0.00097849]
[1673701935718,0.62218359,20880.0,20877.0,0.00019]
[1673701935719,0.37931047,20879.0,20877.0,0.00019]
[1673701935972,0.16440047,20879.0,20877.0,0.00019]
[1673701936220,0.21491,20878.0,20877.0,0.00019]
[1673701936735,0.49806135,20878.0,20877.0,0.00019]
[1673701936974,0.21491,20878.0,20877.0,0.00019]
[1673701937219,0.21491,20878.0,20872.0,0.479108]
[1673701937464,0.62088312,20878.0,20877.0,0.005]
[1673701937710,0.614976,20878.0,20877.0,0.005]
[1673701937973,0.829886,20878.0,20877.0,0.005]
[1673701938223,0.829886,20878.0,20873.0,0.00116972]
[1673701938224,0.693886,20878.0,20873.0,0.00116972]
[1673701938481,1.10545912,20878.0,20873.0,0.00116972]
[1673701938738,0.21491,20877.0,20873.0,0.00116972]
[1673701938987,0.03730047,20877.0,20873.0,0.00116972]
[1673701939237,0.21491,20876.0,20873.0,0.00116972]
[1673701939742,2.03127959,20877.0,20873.0,0.00097972]
[1673701939988,0.21491,20876.0,20873.0,0.00097972]
[1673701940250,0.21491,20875.0,20871.0,0.47509872]
[1673701940522,0.11582047,20874.0,20873.0,0.045]
[1673701940768,0.950175,20874.0,20871.0,0.00095422]
[1673701941016,0.77256547,20874.0,20873.0,0.045]
[1673701941268,1.43435812,20874.0,20867.0,0.4801864]
[1673701941525,1.43435812,20874.0,20871.0,0.005]
[1673701941526,0.75058359,20873.0,20871.0,0.005]
[1673701941770,0.75058359,20873.0,20868.0,0.00019]
[1673701941771,0.21491,20872.0,20868.0,0.00019]
[1673701942025,0.52493729,20872.0,20871.0,0.005]
[1673701942268,0.29343,20872.0,20871.0,0.005]
[1673701943034,0.77254,20872.0,20868.0,0.00019]
[1673701943315,0.77254,20872.0,20867.0,0.0009754]
[1673701943316,0.1,20870.0,20867.0,0.0009754]
[1673701943566,0.25221047,20869.0,20867.0,0.0009754]
[1673701943821,0.25221047,20869.0,20864.0,0.49213344]
[1673701943822,0.16570047,20869.0,20864.0,0.49213344]
[1673701944071,0.35221047,20868.0,20864.0,0.49312402]
[1673701944316,0.03730047,20867.0,20864.0,0.01383302]
[1673701944580,0.21491,20866.0,20864.0,0.01383302]
[1673701944835,0.03730047,20866.0,20864.0,0.01383302]
[1673701945096,0.47041,20865.0,20864.0,0.01384244]
[1673701945343,0.1,20864.0,20859.0,0.36186177]
[1673701945593,0.03730047,20863.0,20859.0,0.36186177]
[1673701945838,0.03730047,20862.0,20859.0,0.26460264]
[1673701946095,0.02502419,20862.0,20859.0,0.26460264]
[1673701946350,0.02502419,20862.0,20854.0,1.0272]
[1673701946598,0.46301678,20864.0,20854.0,0.7996]
[1673701946599,0.02502419,20861.0,20854.0,0.7996]
[1673701946841,0.28188769,20861.0,20857.0,0.72729228]
[1673701947325,0.2568635,20861.0,20857.0,0.72729228]
[1673701947568,0.34336538,20861.0,20857.0,0.479455]
[1673701947815,0.07902419,20861.0,20856.0,0.75208389]
[1673701948054,0.02502419,20860.0,20856.0,0.479468]
[1673701948333,0.12502419,20860.0,20855.0,0.74836658]
[1673701948572,0.02502419,20859.0,20855.0,0.74836658]
[1673701948819,0.02502419,20859.0,20854.0,0.479508]
[1673701948820,0.02502419,20858.0,20854.0,0.479508]
[1673701949085,0.02502419,20858.0,20853.0,0.479544]
[1673701949086,0.36753419,20857.0,20853.0,0.75226856]
[1673701949336,0.02502419,20857.0,20854.0,0.479523]
[1673701949587,0.3145539,20859.0,20854.0,0.479523]
[1673701949838,0.0002,20860.0,20855.0,0.19072595]
[1673701949839,0.3167534,20860.0,20855.0,0.19072595]
[1673701950077,0.3167534,20860.0,20856.0,0.19072595]
[1673701950078,0.135,20857.0,20856.0,0.19072595]
[1673701950334,0.0002,20860.0,20856.0,1.61549131]
[1673701950592,0.015,20859.0,20857.0,0.81178195]
[1673701950849,6e-05,20862.0,20858.0,1.438296]
[1673701951101,6e-05,20862.0,20859.0,0.81178195]
[1673701951346,6e-05,20862.0,20860.0,0.1]
[1673701951601,6e-05,20862.0,20861.0,0.321056]
[1673701951841,6e-05,20862.0,20861.0,0.90394576]
[1673701952088,6e-05,20862.0,20861.0,1.37830876]
[1673701952599,0.10360419,20862.0,20860.0,0.1]
[1673701952847,0.02508419,20862.0,20855.0,0.87096909]
[1673701953095,6e-05,20860.0,20856.0,0.479468]
[1673701953353,6e-05,20860.0,20854.0,0.479513]
[1673701953354,0.02502419,20859.0,20854.0,0.479513]
[1673701953603,0.02502419,20858.0,20854.0,0.479513]
[1673701953852,0.07328552,20859.0,20854.0,0.479513]
[1673701953853,0.02502419,20857.0,20854.0,0.479513]
[1673701954099,0.02502419,20856.0,20853.0,0.78394074]
[1673701954372,0.32596722,20855.0,20853.0,0.479528]
[1673701954616,0.32596722,20855.0,20850.0,7.479597]
[1673701954617,2.43332502,20854.0,20850.0,2.63538024]
[1673701954868,2.43332502,20854.0,20842.0,6.29e-05]
[1673701954869,0.47720169,20850.0,20840.0,0.00687175]
[1673701955147,0.47720169,20850.0,20831.0,0.82559779]
[1673701955148,0.6,20845.0,20828.0,0.55833003]
[1673701955397,0.1286,20841.0,20838.0,0.30427187]
[1673701955668,0.1286,20841.0,20828.0,0.42022317]
[1673701955669,0.82581609,20837.0,20828.0,0.003601]
[1673701955909,0.47720169,20831.0,20828.0,1e-06]
[1673701956155,0.47720169,20829.0,20825.0,0.4113752]
[1673701956402,0.47720169,20829.0,20822.0,1.34476675]
[1673701956403,0.25342019,20828.0,20826.0,0.00019]
[1673701956663,0.37252019,20827.0,20826.0,0.00019]
[1673701956915,0.24492019,20827.0,20826.0,0.00019]
[1673701957164,0.24492019,20827.0,20816.0,0.50614336]
[1673701957165,0.228396,20827.0,20816.0,0.50614336]
[1673701957421,0.02502419,20826.0,20820.0,0.47720169]
[1673701957677,0.02502419,20826.0,20825.0,0.12721331]
[1673701957933,0.29369602,20833.0,20825.0,0.33773131]
[1673701958189,0.0002,20834.0,20826.0,0.55854408]
[1673701958433,0.0002,20834.0,20827.0,0.66792764]
[1673701958690,0.0002,20834.0,20826.0,0.04663313]
[1673701958691,0.26678688,20835.0,20828.0,0.19072595]
[1673701958939,2.73689933,20836.0,20829.0,0.19072595]
[1673701959192,2.73689933,20836.0,20830.0,0.20979855]
[1673701959443,1.52498911,20837.0,20831.0,0.19072595]
[1673701959444,0.012,20833.0,20831.0,0.19072595]
[1673701959690,0.012,20833.0,20831.0,0.49072595]
[1673701959939,1.52498911,20837.0,20833.0,0.1]
[1673701960197,1.52498911,20837.0,20834.0,0.69521]
[1673701960447,1.52498911,20837.0,20835.0,0.621214]
[1673701960717,1.52498911,20837.0,20836.0,0.215207]
[1673701960969,1.52498911,20837.0,20836.0,0.515207]
[1673701961249,1.52498911,20837.0,20836.0,0.7865457]
[1673701961483,0.50231662,20845.0,20836.0,1.46297334]
[1673701961734,0.94437506,20851.0,20838.0,0.959752]
[1673701961983,0.94437506,20851.0,20839.0,1.47675475]
[1673701962247,0.94437506,20851.0,20842.0,0.959572]
[1673701962248,0.96939925,20851.0,20842.0,0.959572]
[1673701962496,0.94437506,20851.0,20845.0,0.1288]
[1673701962737,0.94437506,20851.0,20846.0,0.51189395]
[1673701962987,0.94437506,20851.0,20847.0,0.48841517]
[1673701963239,0.94437506,20851.0,20848.0,0.19072595]
[1673701963484,0.94437506,20851.0,20849.0,0.0190726]
[1673701963738,0.94437506,20851.0,20849.0,0.20979855]
[1673701963984,0.38112977,20847.0,20846.0,0.479504]
[1673701964237,0.38112977,20847.0,20846.0,0.779504]
[1673701964469,0.38112977,20847.0,20846.0,1.100672]
[1673701965001,0.38112977,20847.0,20842.0,0.04773206]
[1673701965002,0.41354178,20847.0,20842.0,0.04773206]
[1673701965268,0.03241201,20846.0,20842.0,0.40115642]
[1673701965575,0.03241201,20845.0,20842.0,0.34703833]
[1673701965840,0.03241201,20845.0,20843.0,0.29358505]
[1673701966122,0.3235446,20846.0,20842.0,0.04757206]
[1673701966366,0.3235446,20846.0,20842.0,0.04499957]
[1673701966367,0.03241201,20844.0,20842.0,0.04499957]
[1673701966630,0.03241201,20844.0,20836.0,0.1431387]
[1673701966631,0.53797901,20843.0,20836.0,0.1431387]
[1673701966884,0.03241201,20842.0,20837.0,0.27283695]
[1673701967141,0.278625,20841.0,20836.0,0.26016382]
[1673701967387,0.03241201,20840.0,20836.0,0.26016382]
[1673701967686,0.50498598,20842.0,20837.0,0.04850159]
[1673701967687,0.03241201,20839.0,20837.0,0.04850159]
[1673701967914,0.03241201,20839.0,20829.0,0.28025762]
[1673701967915,0.1,20837.0,20829.0,0.28025762]
[1673701968171,0.1,20837.0,20830.0,0.35120848]
[1673701968172,0.15991201,20836.0,20830.0,0.35120848]
[1673701968451,0.03241201,20835.0,20830.0,0.07603776]
[1673701968673,0.1275,20836.0,20830.0,0.07603776]
[1673701968674,0.03241201,20834.0,20830.0,0.07603776]
[1673701968921,0.03241201,20833.0,20830.0,0.07472503]
[1673701969179,0.03241201,20832.0,20831.0,0.03459387]
[1673701969426,0.03241201,20835.0,20830.0,0.07472503]
[1673701969671,0.36828046,20837.0,20831.0,0.19072595]
[1673701969924,0.04793264,20837.0,20832.0,0.51189395]
[1673701970165,0.04793264,20837.0,20833.0,0.24191535]
[1673701970421,0.29104679,20838.0,20835.0,0.01699103]
[1673701970669,0.29104679,20838.0,20835.0,0.20771698]
[1673701970670,0.33960765,20838.0,20835.0,0.20771698]
[1673701970920,0.33960765,20838.0,20835.0,0.28160702]
[1673701971460,0.04856086,20838.0,20835.0,0.28160702]
[1673701971669,0.04856086,20838.0,20836.0,0.3]
[1673701971924,0.30080969,20840.0,20837.0,0.321168]
[1673701972174,0.30080969,20840.0,20837.0,0.29798125]
[1673701972422,1.52095116,20844.0,20837.0,0.29798125]
[1673701972674,11.85888451,20847.0,20838.0,1.04571856]
[1673701972675,0.04762033,20842.0,20838.0,1.04571856]
[1673701972929,0.04762033,20842.0,20839.0,2.43718764]
[1673701973191,0.69554353,20847.0,20840.0,0.80567895]
[1673701973446,0.69554353,20847.0,20842.0,0.959596]
[1673701973447,0.74479197,20847.0,20842.0,0.959596]
[1673701973698,0.43037821,20847.0,20843.0,0.90076645]
[1673701973945,0.43037821,20847.0,20844.0,1.47131095]
[1673701974190,0.43037821,20847.0,20845.0,0.214891]
[1673701974438,0.43037821,20847.0,20846.0,0.321055]
[1673701974688,0.38112977,20847.0,20845.0,0.67043395]
[1673701974943,0.38112977,20847.0,20846.0,0.19509869]
[1673701975199,0.38112977,20847.0,20846.0,0.24893959]
[1673701975696,0.38112977,20847.0,20841.0,0.1]
[1673701975697,0.41354178,20847.0,20841.0,0.47981]
[1673701975960,0.41354178,20847.0,20841.0,0.62434757]
[1673701975961,0.9445449,20844.0,20841.0,0.62434757]
[1673701976216,0.97695691,20844.0,20841.0,0.47981]
[1673701976706,0.9445449,20844.0,20842.0,0.321168]
[1673701976983,0.9445449,20844.0,20843.0,0.31403939]
[1673701977236,0.9445449,20844.0,20843.0,1.6627]
[1673701977488,0.9445449,20844.0,20843.0,1.174423]
[1673701977810,0.9445449,20844.0,20843.0,0.959554]
[1673701977994,0.9445449,20844.0,20843.0,1.22497608]
[1673701978504,0.9445449,20844.0,20843.0,1.55714408]
[1673701978750,0.9445449,20844.0,20843.0,1.74743641]
[1673701978751,0.9446049,20844.0,20843.0,1.74743641]
[1673701979252,0.9446049,20844.0,20843.0,1.44743641]
[1673701979499,0.9446049,20844.0,20843.0,1.43643641]
[1673701979755,0.9446049,20844.0,20843.0,1.73643641]
[1673701980002,0.9656049,20844.0,20843.0,1.74343641]
[1673701980501,0.9656049,20844.0,20843.0,1.88023641]
[1673701981000,0.9656049,20844.0,20843.0,2.4574381]
[1673701981251,0.49780794,20844.0,20843.0,2.4574381]
[1673701981525,0.49780794,20844.0,20843.0,2.50613141]
[1673701981769,0.25575594,20853.0,20843.0,2.50613141]
[1673701981770,0.2945408,20858.0,20852.0,0.0499909]
[1673701982025,0.14293163,20866.0,20853.0,0.88267064]
[1673701982026,2.99e-06,20854.0,20853.0,0.88267064]
[1673701982274,2.99e-06,20854.0,20853.0,2.33215695]
[1673701982522,2.99e-06,20854.0,20853.0,1.84410995]
[1673701982766,2.99e-06,20854.0,20853.0,2.33352004]
[1673701983036,2.99e-06,20854.0,20853.0,2.81072173]
[1673701983282,2.99e-06,20854.0,20853.0,2.92797439]
[1673701983537,2.99e-06,20854.0,20853.0,2.91697439]
[1673701983804,2.99e-06,20854.0,20853.0,2.63949578]
[1673701984053,2.99e-06,20854.0,20853.0,2.62849578]
[1673701984303,2.99e-06,20854.0,20853.0,2.46849966]
[1673701984556,2.99e-06,20854.0,20853.0,2.59689966]
[1673701985061,2.99e-06,20854.0,20853.0,2.76389578]
[1673701985301,2.99e-06,20854.0,20853.0,3.13518683]
[1673701985808,2.99e-06,20854.0,20853.0,3.12818683]
[1673701986055,2.99e-06,20854.0,20853.0,3.64158807]
[1673701986301,2.99e-06,20854.0,20853.0,3.12818683]
[1673701986547,2.99e-06,20854.0,20853.0,2.80558909]
[1673701986802,2.99e-06,20854.0,20853.0,2.81258909]
[1673701987048,2.99e-06,20854.0,20853.0,2.50558909]
[1673701987296,2.99e-06,20854.0,20853.0,2.75383578]
[1673701987543,2.99e-06,20854.0,20853.0,2.74683578]
[1673701987792,2.99e-06,20854.0,20853.0,2.89361204]
[1673701988057,2.99e-06,20854.0,20853.0,2.64626504]
[1673701988305,2.99e-06,20854.0,20853.0,2.94626504]
[1673701988547,2.99e-06,20854.0,20853.0,2.80526504]
[1673701988799,2.99e-06,20854.0,20853.0,2.81426504]
[1673701990393,2.99e-06,20854.0,20853.0,3.18983259]
[1673701990625,0.032415,20854.0,20853.0,2.83263928]
[1673701990874,2.99e-06,20854.0,20853.0,1.85147004]
[1673701991878,2.99e-06,20854.0,20853.0,1.65305995]
[1673701992126,2.99e-06,20854.0,20853.0,0.22441895]
[1673701992369,2.99e-06,20854.0,20853.0,0.01]
[1673701993418,2.99e-06,20854.0,20852.0,0.479549]
[1673701993682,0.12800299,20854.0,20853.0,0.005]
[1673701993939,0.12800299,20854.0,20852.0,0.479549]
[1673701993940,2.99e-06,20854.0,20852.0,0.479549]
[1673701994703,2.99e-06,20854.0,20850.0,0.479602]
[1673701994961,0.160415,20854.0,20853.0,0.005]
[1673701995214,0.12800299,20854.0,20853.0,0.005]
[1673701995456,2.99e-06,20854.0,20849.0,0.52790286]
[1673701995712,0.03241201,20853.0,20852.0,0.005]
[1673701995962,0.42115601,20854.0,20852.0,0.005]
[1673701996210,0.54915601,20854.0,20853.0,0.005]
[1673701996453,2.99e-06,20854.0,20849.0,0.46734467]
[1673701996713,0.2288,20852.0,20849.0,0.04827786]
[1673701997229,0.26121201,20852.0,20849.0,0.04827786]
[1673701997503,0.03241201,20852.0,20849.0,0.04827786]
[1673701997753,0.1,20852.0,20849.0,0.04827786]
[1673701998025,1.19733372,20853.0,20849.0,0.04827786]
[1673701998257,1.19733372,20853.0,20849.0,0.23900381]
[1673701998258,0.1275,20850.0,20849.0,0.23900381]